bitfinex/quotes_BTCUSD_20251025
["timestamp","ask_amount","ask_price","bid_price","bid_amount"]
[1761430395372,0.73990411,111440.0,111430.0,0.16250745]
[1761430399146,0.91934411,111440.0,111430.0,0.16250745]
[1761430403859,0.91455896,111440.0,111430.0,0.16250745]
[1761430404000,0.73511896,111440.0,111430.0,0.16250745]
[1761430405320,0.73511655,111440.0,111430.0,0.16250745]
[1761430408281,0.69238416,111440.0,111430.0,0.16250745]
[1761430409093,0.68759902,111440.0,111430.0,0.16250745]
[1761430409873,0.68759902,111440.0,111430.0,0.1624165]
[1761430415564,0.74198657,111440.0,111430.0,0.1624165]
[1761430419026,0.74198657,111440.0,111430.0,0.09372806]
[1761430419681,1.12461524,111440.0,111430.0,0.09372806]
[1761430421284,0.82132868,111440.0,111430.0,0.09372806]
[1761430422631,0.81654354,111440.0,111430.0,0.09372806]
[1761430426726,0.81654354,111440.0,111430.0,0.00390905]
[1761430426943,0.84348117,111440.0,111430.0,0.00390905]
[1761430427561,1.02292117,111440.0,111430.0,0.00390905]
[1761430440960,0.6402925,111440.0,111430.0,0.00390905]
[1761430442414,0.53532335,111440.0,111430.0,0.00390905]
[1761430446315,0.50838572,111440.0,111430.0,0.00390905]
[1761430446709,0.50838572,111440.0,111430.0,0.03084668]
[1761430449138,0.50838572,111440.0,111430.0,0.02584668]
[1761430455065,0.86776428,111440.0,111430.0,0.02584668]
[1761430455264,0.21566715,111430.0,111420.0,0.004]
[1761430455475,0.27306715,111430.0,111420.0,0.12075664]
[1761430456743,0.27306715,111430.0,111420.0,0.12275664]
[1761430459662,0.16809798,111430.0,111420.0,0.12275664]
[1761430460613,0.16220615,111430.0,111420.0,0.12275664]
[1761430460844,0.16220615,111430.0,111420.0,0.15429178]
[1761430465999,0.16220615,111430.0,111420.0,0.12275664]
[1761430467461,0.16220615,111430.0,111420.0,0.09581901]
[1761430501247,0.54494415,111430.0,111420.0,0.09581901]
[1761430501633,0.73283702,111430.0,111420.0,0.09581901]
[1761430503705,0.73283702,111430.0,111420.0,0.006]
[1761430519567,0.73283245,111430.0,111420.0,0.006]
[1761430521431,0.35009445,111430.0,111420.0,0.006]
[1761430521696,0.73283245,111430.0,111420.0,0.006]
[1761430522545,0.35009445,111430.0,111420.0,0.006]
[1761430528299,0.35009659,111430.0,111420.0,0.006]
[1761430529498,0.35009659,111430.0,111420.0,0.18550098]
[1761430529701,0.35009659,111430.0,111420.0,0.006]
[1761430529849,0.35009659,111430.0,111420.0,0.08387974]
[1761430533627,0.37703623,111430.0,111420.0,0.08387974]
[1761430537888,0.71703623,111430.0,111420.0,0.08387974]
[1761430540580,0.71703623,111430.0,111420.0,0.26338072]
[1761430540990,0.71703623,111430.0,111420.0,0.08387974]
[1761430542319,0.71703623,111430.0,111420.0,0.26338072]
[1761430544303,0.71703623,111430.0,111420.0,0.08387974]
[1761430544638,0.71703623,111430.0,111420.0,0.26338072]
[1761430545446,0.64841236,111430.0,111420.0,0.35319973]
[1761430545646,0.56407759,111430.0,111420.0,0.73593773]
[1761430545851,0.59923272,111430.0,111420.0,0.76287548]
[1761430546259,0.21464,111430.0,111420.0,1.14561348]
[1761430546894,0.25082228,111430.0,111420.0,1.14561348]
[1761430550935,0.25082228,111430.0,111420.0,0.76287548]
[1761430555128,0.25082228,111430.0,111420.0,0.76228673]
[1761430562673,0.25082228,111430.0,111420.0,0.71968133]
[1761430566418,0.25082228,111430.0,111420.0,0.69274358]
[1761430567280,0.25082228,111430.0,111420.0,0.71967923]
[1761430578979,0.25082228,111430.0,111420.0,0.37954663]
[1761430579159,0.25082228,111430.0,111420.0,0.71967923]
[1761430584090,0.25082228,111430.0,111420.0,0.37954663]
[1761430584285,0.25082228,111430.0,111420.0,0.71967923]
[1761430587727,0.25082228,111430.0,111420.0,0.69274358]
[1761430592030,0.25082228,111430.0,111420.0,0.35261098]
[1761430622884,0.25082228,111430.0,111420.0,0.73527331]
[1761430633063,0.23801554,111430.0,111420.0,0.73527331]
[1761430633269,0.22561699,111430.0,111420.0,0.73527331]
[1761430669954,0.22061699,111430.0,111420.0,0.73527331]
[1761430672305,0.21561699,111430.0,111420.0,0.73527331]
[1761430684909,0.21561699,111430.0,111420.0,0.69274709]
[1761430685496,0.21561699,111430.0,111420.0,0.35261098]
[1761430693267,0.21561699,111430.0,111420.0,0.69274709]
[1761430694465,0.21561699,111430.0,111420.0,0.71968274]
[1761430697707,0.21548123,111430.0,111420.0,0.71968274]
[1761430706275,0.0614,111450.0,111440.0,0.17946877]
[1761430706492,0.21856,111450.0,111440.0,0.66341354]
[1761430706695,0.25474228,111450.0,111440.0,0.64546667]
[1761430706915,0.21856,111450.0,111440.0,0.64546667]
[1761430707070,0.09758228,111450.0,111440.0,0.67239668]
[1761430707261,0.21856,111450.0,111440.0,0.67239668]
[1761430707493,0.25474228,111450.0,111440.0,0.67239668]
[1761430708128,0.25330314,111450.0,111440.0,0.67439668]
[1761430708319,0.25330314,111450.0,111440.0,0.64746667]
[1761430709276,0.00256086,111450.0,111440.0,0.98760278]
[1761430709488,0.00256086,111450.0,111440.0,0.99760277]
[1761430709697,0.15972086,111450.0,111440.0,1.02452822]
[1761430710363,0.15972086,111450.0,111440.0,1.02252822]
[1761430710743,0.15972086,111450.0,111440.0,1.36652822]
[1761430711104,0.15972086,111450.0,111440.0,1.36752822]
[1761430713537,0.00256086,111450.0,111440.0,1.36752822]
[1761430730346,0.19090314,111460.0,111450.0,0.17945266]
[1761430730573,0.19090314,111460.0,111450.0,0.69210744]
[1761430730778,0.19090314,111460.0,111450.0,0.67416218]
[1761430731163,0.19090314,111460.0,111450.0,0.70108763]
[1761430732363,0.19090314,111460.0,111450.0,0.70308763]
[1761430733066,0.19090314,111460.0,111450.0,0.70108763]
[1761430733456,0.19090314,111460.0,111450.0,0.70508763]
[1761430733695,0.19090314,111460.0,111450.0,0.70608763]
[1761430743080,0.19090314,111460.0,111450.0,0.70608763]
[1761430744094,0.008,111470.0,111460.0,0.17943656]
[1761430744391,0.20971093,111470.0,111460.0,0.70521507]
[1761430744566,0.20971093,111470.0,111460.0,0.68727142]
[1761430744784,0.20971093,111470.0,111460.0,0.7294207]
[1761430746085,0.20971093,111470.0,111460.0,0.7314207]
[1761430747790,0.26711093,111470.0,111460.0,0.7314207]
[1761430752277,0.25870228,111470.0,111460.0,0.7314207]
[1761430759253,0.22252,111470.0,111460.0,0.7314207]
[1761430759462,0.22248,111470.0,111460.0,0.7314207]
[1761430762157,0.16508,111470.0,111460.0,0.7314207]
[1761430767810,0.16508,111470.0,111460.0,0.7294207]
[1761430768222,0.16508,111470.0,111460.0,0.7364207]
[1761430768372,0.16508,111470.0,111460.0,0.7374207]
[1761430788796,0.16477298,111470.0,111460.0,0.7374207]
[1761430804836,0.16477298,111470.0,111460.0,0.69494804]
[1761430810244,0.16477298,111470.0,111460.0,0.35513531]
[1761430810446,0.16477298,111470.0,111460.0,0.69494804]
[1761430826407,0.16456923,111470.0,111460.0,0.69494804]
[1761430849340,0.16456923,111470.0,111460.0,0.35513531]
[1761430849473,0.16456923,111470.0,111460.0,0.69494804]
[1761430853220,0.16456923,111470.0,111460.0,0.35513531]
[1761430853450,0.16456923,111470.0,111460.0,0.69494804]
[1761430854927,0.16456923,111470.0,111460.0,0.69554181]
[1761430863888,0.22196923,111470.0,111460.0,0.69554181]
[1761430864733,0.22196923,111470.0,111460.0,0.73803875]
[1761430866828,0.22196923,111470.0,111460.0,0.76496098]
[1761430868699,0.16456923,111470.0,111460.0,0.76496098]
[1761430893110,0.16456923,111470.0,111460.0,0.38265131]
[1761430893318,0.16456923,111470.0,111460.0,0.76496098]
[1761430919198,0.16456923,111470.0,111460.0,0.38265131]
[1761430919344,0.16456923,111470.0,111460.0,0.76496098]
[1761430919976,0.22196923,111470.0,111460.0,0.76496098]
[1761430921499,0.22196923,111470.0,111460.0,0.68708124]
[1761430922043,0.22196923,111470.0,111460.0,0.66015901]
[1761430922728,0.25815151,111470.0,111460.0,0.66015901]
[1761430926796,0.25815151,111470.0,111460.0,0.61772628]
[1761430934078,0.43757198,111470.0,111460.0,0.27784934]
[1761430934294,0.43757198,111470.0,111460.0,0.09841278]
[1761430934912,0.46449919,111470.0,111460.0,0.09841278]
[1761430935123,0.8943182,111470.0,111460.0,0.09841278]
[1761430935336,0.81290437,111470.0,111460.0,0.09841278]
[1761430935714,0.81290437,111470.0,111460.0,0.09041278]
[1761430935869,0.81290437,111470.0,111460.0,0.09441278]
[1761430936063,0.81290437,111470.0,111460.0,0.09541278]
[1761430936266,0.80449919,111470.0,111460.0,0.09141278]
[1761430936468,0.80449919,111470.0,111460.0,0.09041278]
[1761430946224,0.80449919,111470.0,111460.0,0.09241278]
[1761430952265,0.98389919,111470.0,111460.0,0.09241278]
[1761430959768,0.98389919,111470.0,111460.0,0.15358702]
[1761430961157,0.98389919,111470.0,111460.0,0.09241278]
[1761430963480,0.9923036,111470.0,111460.0,0.09241278]
[1761430971057,0.47288313,111470.0,111460.0,0.61172628]
[1761430971257,0.46447872,111470.0,111460.0,0.61172628]
[1761430971460,0.28507872,111470.0,111460.0,0.61172628]
[1761430971665,0.28507872,111470.0,111460.0,0.69084417]
[1761430972256,0.28507872,111470.0,111460.0,0.35096723]
[1761430972458,0.28507872,111470.0,111460.0,0.69084417]
[1761430972698,0.28507872,111470.0,111460.0,0.61172628]
[1761430981347,0.28507872,111470.0,111460.0,0.27184934]
[1761430982471,0.46449919,111470.0,111460.0,0.27184934]
[1761430982824,0.46449919,111470.0,111460.0,0.00259377]
[1761430986539,0.43757198,111470.0,111460.0,0.00259377]
[1761430986949,0.43757198,111470.0,111460.0,0.09241278]
[1761430988830,0.43757198,111470.0,111460.0,0.47483561]
[1761430989449,0.61697198,111470.0,111460.0,0.47483561]
[1761430989645,0.61697198,111470.0,111460.0,0.65427217]
[1761430989850,0.61697198,111470.0,111460.0,0.47483561]
[1761430993393,0.61697198,111470.0,111460.0,0.65427217]
[1761430993709,0.61697198,111470.0,111460.0,0.74033765]
[1761430994054,0.61697198,111470.0,111460.0,0.65427217]
[1761430997741,0.61697198,111470.0,111460.0,0.09241278]
[1761430999474,0.62537762,111470.0,111460.0,0.09241278]
[1761431000569,0.61697198,111470.0,111460.0,0.27184934]
[1761431002893,0.62537808,111470.0,111460.0,0.27184934]
[1761431003904,0.61697198,111470.0,111460.0,0.27184934]
[1761431004295,0.62537821,111470.0,111460.0,0.27184934]
[1761431005057,0.62537834,111470.0,111460.0,0.27184934]
[1761431006810,0.62537867,111470.0,111460.0,0.27184934]
[1761431007509,0.62537867,111470.0,111460.0,0.65427217]
[1761431010697,0.62537867,111470.0,111460.0,0.09241278]
[1761431010898,0.62537867,111470.0,111460.0,0.27184934]
[1761431012514,1.3478015,111470.0,111460.0,0.00259377]
[1761431013294,0.96537867,111470.0,111460.0,0.00259377]
[1761431021032,1.3478015,111470.0,111460.0,0.00259377]
[1761431021635,0.96537867,111470.0,111460.0,0.00259377]
[1761431025907,1.3478015,111470.0,111460.0,0.00259377]
[1761431036599,0.96537867,111470.0,111460.0,0.00259377]
[1761431045418,0.9653791,111470.0,111460.0,0.00259377]
[1761431067974,0.96538178,111470.0,111460.0,0.00259377]
[1761431068196,0.96314432,111470.0,111460.0,0.00259377]
[1761431070003,0.99007547,111470.0,111460.0,0.00259377]
[1761431093729,0.99007547,111470.0,111460.0,0.4323901]
[1761431093932,0.99007547,111470.0,111460.0,0.49357433]
[1761431094145,0.96314432,111470.0,111460.0,0.49357433]
[1761431094344,0.96314432,111470.0,111460.0,0.69994061]
[1761431094554,0.96314432,111470.0,111460.0,0.35996329]
[1761431094753,0.96314432,111470.0,111460.0,0.18052673]
[1761431096027,0.96314432,111470.0,111460.0,0.52050405]
[1761431098261,0.96314432,111470.0,111460.0,0.69994061]
[1761431099067,0.9631403,111470.0,111460.0,0.69994061]
[1761431104187,0.9631403,111470.0,111460.0,0.52050405]
[1761431104450,0.9631403,111470.0,111460.0,0.18052673]
[1761431104865,0.9631403,111470.0,111460.0,0.1193425]
[1761431106055,0.9631403,111470.0,111460.0,0.1173425]
[1761431106430,0.9631403,111470.0,111460.0,0.09041278]
[1761431108259,0.9631403,111470.0,111460.0,0.09032313]
[1761431127650,0.96314196,111470.0,111460.0,0.09032313]
[1761431139803,0.96314196,111470.0,111460.0,0.47278893]
[1761431143370,0.99007168,111470.0,111460.0,0.47278893]
[1761431144074,0.96314196,111470.0,111460.0,0.47278893]
[1761431145930,0.96314196,111470.0,111460.0,0.65222549]
[1761431148338,0.96314196,111470.0,111460.0,0.7420445]
[1761431148964,0.96314196,111470.0,111460.0,0.65222549]
[1761431153651,0.62314196,111470.0,111460.0,0.65222549]
[1761431155541,0.62313983,111470.0,111460.0,0.65222549]
[1761431166718,0.6500695,111470.0,111460.0,0.65222549]
[1761431170866,0.6500695,111470.0,111460.0,0.26975969]
[1761431183910,0.07676903,111470.0,111460.0,0.3513648]
[1761431184114,0.22813708,111470.0,111460.0,0.69127431]
[1761431184330,0.22813708,111470.0,111460.0,0.71820092]
[1761431184536,0.25591405,111470.0,111460.0,0.71820092]
[1761431186908,0.21973177,111470.0,111460.0,0.71820092]
[1761431188178,0.21749431,111470.0,111460.0,0.71820092]
[1761431193199,0.06041431,111470.0,111460.0,0.72220092]
[1761431193399,0.21745431,111470.0,111460.0,0.72220092]
[1761431193632,0.21745431,111470.0,111460.0,0.72320092]
[1761431200480,0.00421693,111480.0,111470.0,0.17942047]
[1761431200712,0.00421693,111480.0,111470.0,0.71691004]
[1761431200916,0.16129693,111480.0,111470.0,0.698968]
[1761431201139,0.16129693,111480.0,111470.0,0.72588869]
[1761431201332,0.00421693,111480.0,111470.0,0.72588869]
[1761431201534,0.16129693,111480.0,111470.0,0.72588869]
[1761431202616,0.16129693,111480.0,111470.0,0.72788869]
[1761431202840,0.16129693,111480.0,111470.0,0.72588869]
[1761431203267,0.16129693,111480.0,111470.0,0.73288869]
[1761431203473,0.16129693,111480.0,111470.0,0.73388869]
[1761431206062,0.16108,111480.0,111470.0,0.73388869]
[1761431209210,0.16108,111480.0,111470.0,0.73399169]
[1761431211267,0.16108,111480.0,111470.0,0.73427881]
[1761431211462,0.004,111480.0,111470.0,0.73427881]
[1761431211701,0.16108,111480.0,111470.0,0.73427881]
[1761431213658,0.06591301,111490.0,111480.0,0.17940437]
[1761431213861,0.22299301,111490.0,111480.0,0.71578381]
[1761431214064,0.22299301,111490.0,111480.0,1.03775289]
[1761431214444,0.22299301,111490.0,111480.0,0.69784338]
[1761431214864,0.22304216,111490.0,111480.0,0.72576095]
[1761431215179,0.22304216,111490.0,111480.0,0.72976095]
[1761431215377,0.22304216,111490.0,111480.0,1.06967046]
[1761431217039,0.16564216,111490.0,111480.0,1.06967046]
[1761431217534,0.16564216,111490.0,111480.0,1.40967046]
[1761431219213,0.16564216,111490.0,111480.0,1.40867046]
[1761431219414,0.00856216,111490.0,111480.0,1.40467046]
[1761431219833,0.00856216,111490.0,111480.0,1.41467046]
[1761431220652,0.00856216,111490.0,111480.0,1.41567046]
[1761431223499,0.00856216,111490.0,111480.0,1.61567046]
[1761431224268,0.15708,111500.0,111490.0,0.17938828]
[1761431224448,0.21864,111510.0,111500.0,0.17937219]
[1761431224637,0.21912284,111510.0,111500.0,0.60910071]
[1761431225032,0.21912284,111510.0,111500.0,0.6360149]
[1761431225856,0.21912284,111510.0,111500.0,0.64517344]
[1761431226053,0.21912284,111510.0,111500.0,0.73788393]
[1761431226406,0.21912284,111510.0,111500.0,0.71096974]
[1761431226993,0.21912284,111510.0,111500.0,0.7018112]
[1761431227765,0.21912284,111510.0,111500.0,0.7028112]
[1761431230065,0.21912284,111510.0,111500.0,0.71174253]
[1761431231240,1.1557301,111510.0,111500.0,0.005]
[1761431231434,1.17503776,111510.0,111500.0,0.005]
[1761431231636,1.20664372,111510.0,111500.0,0.005]
[1761431231834,1.17386393,111510.0,111500.0,0.005]
[1761431232042,1.17386393,111510.0,111500.0,0.004]
[1761431232241,1.17386393,111510.0,111470.0,0.1887797]
[1761431232242,0.17940203,111490.0,111470.0,0.1887797]
[1761431232446,0.60978665,111480.0,111470.0,0.1887797]
[1761431232614,0.61816622,111480.0,111470.0,0.1887797]
[1761431232831,0.43876185,111480.0,111470.0,0.5710959]
[1761431233082,0.4656863,111480.0,111470.0,0.5710959]
[1761431233357,0.4656863,111480.0,111470.0,0.64704633]
[1761431233993,0.4656863,111480.0,111470.0,0.26473013]
[1761431234144,0.4656863,111480.0,111470.0,0.66191491]
[1761431234343,0.6367111,111480.0,111470.0,0.66191491]
[1761431234554,0.6367111,111480.0,111470.0,0.66091491]
[1761431234754,0.6367111,111480.0,111470.0,0.66591491]
[1761431235926,0.6367111,111480.0,111470.0,0.28359871]
[1761431236130,0.6367111,111480.0,111470.0,0.71311562]
[1761431237414,0.45730673,111480.0,111470.0,0.71311562]
[1761431250475,0.43038228,111480.0,111470.0,0.71311562]
[1761431251270,0.25106228,111480.0,111470.0,0.71311562]
[1761431261371,0.21488,111480.0,111470.0,0.71311562]
[1761431294740,0.21488,111480.0,111470.0,0.67056695]
[1761431303641,0.17252121,111480.0,111470.0,0.65180824]
[1761431304018,0.17252121,111480.0,111470.0,0.66077926]
[1761431339025,0.15752,111480.0,111470.0,0.66077926]
[1761431342805,0.05736,111490.0,111480.0,0.17940437]
[1761431343025,0.21456,111490.0,111480.0,0.71675035]
[1761431343263,0.21456,111490.0,111480.0,0.69880992]
[1761431343469,0.21456,111490.0,111480.0,0.72572853]
[1761431343867,0.21456,111490.0,111480.0,0.72772853]
[1761431346502,0.21456,111490.0,111480.0,0.70080992]
[1761431348243,0.21456,111490.0,111480.0,0.69980992]
[1761431348672,0.21456,111490.0,111480.0,0.70680992]
[1761431356699,0.21456,111490.0,111480.0,1.13128207]
[1761431356896,0.1572,111490.0,111480.0,1.13128207]
[1761431363222,0.05757688,111500.0,111490.0,0.17938828]
[1761431363423,0.21473688,111500.0,111490.0,0.71077573]
[1761431363637,0.21473688,111500.0,111490.0,0.69283691]
[1761431364424,0.21473688,111500.0,111490.0,0.69383691]
[1761431364630,0.21473688,111500.0,111490.0,0.69883691]
[1761431371259,0.15737688,111500.0,111490.0,0.69883691]
[1761431385558,0.21473688,111500.0,111490.0,0.69883691]
[1761431390417,0.15737688,111500.0,111490.0,0.69883691]
[1761431395206,0.21473688,111500.0,111490.0,0.69883691]
[1761431403280,0.15733688,111500.0,111490.0,0.69883691]
[1761431403520,0.15733688,111500.0,111490.0,1.03883691]
[1761431404634,0.15733688,111500.0,111490.0,1.06575103]
[1761431406336,0.00021688,111500.0,111490.0,1.06575103]
[1761431406567,0.00021688,111500.0,111490.0,1.03883691]
[1761431406776,0.00021688,111500.0,111490.0,1.44787014]
[1761431407453,0.00021688,111500.0,111490.0,1.0657503]
[1761431408002,0.00021688,111500.0,111490.0,1.0647503]
[1761431408247,0.00021688,111500.0,111490.0,1.0657503]
[1761431408752,0.00021688,111500.0,111490.0,1.0607503]
[1761431409000,0.00021688,111500.0,111490.0,1.45287014]
[1761431409255,0.00021688,111500.0,111490.0,1.0707503]
[1761431418737,0.00021688,111500.0,111490.0,0.68863046]
[1761431418955,0.00021688,111500.0,111490.0,1.02819768]
[1761431433228,0.214106,111520.0,111490.0,1.02819768]
[1761431433446,0.214106,111520.0,111510.0,0.60874234]
[1761431433447,0.22300012,111520.0,111510.0,0.60874234]
[1761431433651,0.22300012,111520.0,111510.0,0.65594305]
[1761431433851,0.22300012,111520.0,111510.0,0.31637583]
[1761431434057,0.22372083,111520.0,111510.0,0.31637583]
[1761431434494,0.22372083,111520.0,111510.0,0.65594305]
[1761431434919,0.22372083,111520.0,111510.0,0.66094305]
[1761431436134,0.22372083,111520.0,111510.0,0.66194305]
[1761431452513,0.16669483,111520.0,111510.0,0.66194305]
[1761431452835,0.22405483,111520.0,111510.0,0.66194305]
[1761431459432,0.158292,111520.0,111510.0,0.66194305]
[1761431466823,0.158292,111520.0,111510.0,0.68885299]
[1761431478849,0.158292,111520.0,111510.0,1.11308513]
[1761431483693,0.001212,111520.0,111510.0,1.11308513]
[1761431483892,0.133852,111520.0,111510.0,1.45308513]
[1761431484311,0.001212,111520.0,111510.0,1.45308513]
[1761431484750,0.001212,111520.0,111510.0,1.44708513]
[1761431484968,0.001212,111520.0,111510.0,1.44808513]
[1761431485458,0.001212,111520.0,111510.0,1.44708513]
[1761431485653,0.001212,111520.0,111510.0,1.45708513]
[1761431485865,0.001212,111520.0,111510.0,1.45808513]
[1761431486500,0.05756,111540.0,111530.0,0.51932394]
[1761431486501,0.0002,111540.0,111530.0,0.51932394]
[1761431486735,0.00028808,111540.0,111530.0,1.4598747]
[1761431487198,0.00072162,111540.0,111530.0,1.4598747]
[1761431487403,0.00072162,111540.0,111530.0,1.48677832]
[1761431487619,0.00072162,111540.0,111530.0,1.49177832]
[1761431488036,0.00072162,111540.0,111530.0,1.48677832]
[1761431488247,0.00072162,111540.0,111530.0,1.49677832]
[1761431488675,0.00072162,111540.0,111530.0,1.49777832]
[1761431526598,0.00072162,111540.0,111530.0,1.4708747]
[1761431532203,0.00072162,111540.0,111530.0,0.66204263]
[1761431538830,0.00072162,111540.0,111530.0,0.61951264]
[1761431586812,0.00072162,111540.0,111530.0,0.64641819]
[1761431595669,0.00072162,111540.0,111530.0,0.3070485]
[1761431595881,0.00072162,111540.0,111530.0,0.64641819]
[1761431597213,0.00072162,111540.0,111530.0,0.7262372]
[1761431597421,0.00072162,111540.0,111530.0,0.7252372]
[1761431597629,0.00072162,111540.0,111530.0,0.7262372]
[1761431598250,0.00072162,111540.0,111530.0,0.7332372]
[1761431598875,0.00072162,111540.0,111530.0,0.68588898]
[1761431600345,0.00072162,111540.0,111530.0,0.65898343]
[1761431602648,0.00171441,111540.0,111530.0,0.27714295]
[1761431602860,0.00171441,111540.0,111530.0,0.65898343]
[1761431607547,0.05907441,111540.0,111530.0,0.65898343]
[1761431613343,0.05907441,111540.0,111530.0,0.74550654]
[1761431614348,0.05907441,111540.0,111530.0,0.65898343]
[1761431616508,0.05808162,111540.0,111530.0,0.65898343]
[1761431617561,0.05808162,111540.0,111530.0,0.008]
[1761431617562,1.03824552,111540.0,111530.0,0.008]
[1761431617770,0.66380961,111540.0,111530.0,0.008]
[1761431617981,0.69072375,111540.0,111530.0,0.008]
[1761431618392,0.69072375,111540.0,111530.0,0.007]
[1761431618608,0.69072375,111540.0,111510.0,0.57016103]
[1761431618609,0.03618228,111520.0,111510.0,0.57016103]
[1761431618814,0.19350228,111520.0,111510.0,0.65998004]
[1761431619436,0.22041642,111520.0,111510.0,0.65998004]
[1761431619646,0.22041642,111520.0,111510.0,0.66098004]
[1761431620959,0.22041642,111520.0,111510.0,0.66798004]
[1761431626855,0.27777642,111520.0,111510.0,0.66798004]
[1761431627058,0.45711644,111520.0,111510.0,0.66798004]
[1761431628565,0.27777642,111520.0,111510.0,0.66798004]
[1761431634120,0.03639907,111530.0,111520.0,0.17934002]
[1761431634334,0.03639907,111530.0,111520.0,0.65099951]
[1761431634335,0.43040329,111530.0,111520.0,0.65099951]
[1761431634540,0.45731613,111530.0,111520.0,0.65099951]
[1761431635184,0.24263613,111530.0,111520.0,0.65199951]
[1761431635402,0.45731585,111530.0,111520.0,0.65699951]
[1761431635576,0.45731585,111530.0,111520.0,0.27515903]
[1761431635782,0.45731585,111530.0,111520.0,0.65699951]
[1761431641268,0.45731585,111530.0,111520.0,0.27515903]
[1761431641549,0.45731585,111530.0,111520.0,0.65699951]
[1761431641969,0.45731585,111530.0,111520.0,0.27515903]
[1761431642178,0.45731585,111530.0,111520.0,0.65699951]
[1761431642794,0.45731585,111530.0,111520.0,0.74681852]
[1761431645139,0.27799191,111530.0,111520.0,0.74681852]
[1761431645337,0.46570706,111530.0,111520.0,0.74681852]
[1761431646347,0.43879422,111530.0,111520.0,0.74681852]
[1761431646554,0.25947028,111530.0,111520.0,0.74681852]
[1761431646743,0.25947028,111530.0,111520.0,0.77373136]
[1761431647437,0.04479028,111530.0,111520.0,0.77373136]
[1761431647645,0.25103907,111530.0,111520.0,0.77373136]
[1761431660751,0.25103907,111530.0,111520.0,0.73132723]
[1761431663990,0.00021679,111530.0,111520.0,0.73132723]
[1761431664192,0.21481679,111530.0,111520.0,0.73132723]
[1761431667203,0.21481679,111530.0,111520.0,1.07076358]
[1761431667411,0.15745679,111530.0,111520.0,1.07076358]
[1761431671905,0.15745679,111530.0,111520.0,1.04385074]
[1761431672520,0.15745679,111530.0,111520.0,1.38385074]
[1761431672727,0.19363907,111530.0,111520.0,1.38385074]
[1761431672993,0.19363907,111530.0,111520.0,1.41075839]
[1761431680333,0.19363907,111530.0,111520.0,1.40975839]
[1761431680562,0.19363907,111530.0,111520.0,1.40575839]
[1761431680899,0.19363907,111530.0,111520.0,1.41575839]
[1761431705994,0.00028808,111540.0,111530.0,0.51876029]
[1761431706212,0.15740808,111540.0,111530.0,0.69728979]
[1761431706422,0.15744808,111540.0,111530.0,0.69728979]
[1761431707154,0.15744808,111540.0,111530.0,0.69828979]
[1761431707360,0.15744808,111540.0,111530.0,0.70528979]
[1761431711062,0.00028808,111540.0,111530.0,1.04528979]
[1761431711646,0.00050484,111540.0,111530.0,1.04528979]
[1761431720814,0.00050484,111540.0,111530.0,1.46930872]
[1761431732221,0.00050484,111540.0,111530.0,1.49621214]
[1761431747201,0.00050484,111540.0,111530.0,1.02577401]
[1761431766513,0.00050484,111540.0,111530.0,0.99887059]
[1761431780948,0.00050484,111540.0,111530.0,0.95652362]
[1761431794408,0.00050484,111540.0,111530.0,0.61714295]
[1761431817098,0.00050484,111540.0,111530.0,0.95652362]
[1761431817301,0.00050484,111540.0,111530.0,1.04634263]
[1761431820557,0.00050484,111540.0,111530.0,0.70696196]
[1761431820781,0.00050484,111540.0,111530.0,1.04634263]
[1761431821886,0.00050484,111540.0,111530.0,0.95652362]
[1761431842808,0.00050484,111540.0,111530.0,0.99893404]
[1761431844117,0.00050484,111540.0,111530.0,1.38072513]
[1761431886752,0.00050484,111540.0,111530.0,1.40763034]
[1761431902709,0.00050484,111540.0,111530.0,0.98338311]
[1761431907550,0.00050484,111540.0,111530.0,1.07320212]
[1761431924791,0.00050484,111540.0,111530.0,0.98338311]
[1761431946416,0.00050484,111540.0,111530.0,0.9564779]
[1761431964728,0.00050484,111540.0,111530.0,0.99898317]
[1761431968363,0.00050484,111540.0,111530.0,1.38082339]
[1761431973300,0.00050484,111540.0,111530.0,1.40772896]
[1761431973717,0.00050484,111540.0,111530.0,1.49754797]
[1761431984046,0.00050484,111540.0,111530.0,1.40772896]
[1761431998597,0.00050484,111540.0,111530.0,1.02588874]
[1761431999506,0.00050484,111540.0,111530.0,1.40772896]
[1761432001571,0.00050484,111540.0,111530.0,0.64404852]
[1761432001775,0.00050484,111540.0,111530.0,1.40772896]
[1761432001944,0.00050484,111540.0,111530.0,1.49754797]
[1761432013445,1e-08,111540.0,111530.0,1.69754797]
[1761432013650,1e-08,111540.0,111530.0,1.70754796]
[1761432013889,1e-08,111540.0,111530.0,3.70754796]
[1761432014613,1e-08,111540.0,111530.0,3.69954796]
[1761432014758,1e-08,111540.0,111530.0,3.71254796]
[1761432014971,1e-08,111540.0,111530.0,3.71454796]
[1761432016222,1e-08,111540.0,111530.0,3.86014796]
[1761432017179,0.0002,111560.0,111550.0,0.51929179]
[1761432017406,0.0002,111570.0,111560.0,1.28295616]
[1761432017656,0.00028807,111570.0,111560.0,1.37277517]
[1761432017877,0.00028807,111570.0,111560.0,1.37636114]
[1761432019224,1e-08,111570.0,111560.0,1.37636114]
[1761432019439,1e-08,111570.0,111560.0,1.38636113]
[1761432019645,1e-08,111570.0,111560.0,1.48618013]
[1761432019878,1e-08,111570.0,111560.0,3.47818014]
[1761432020126,1e-08,111570.0,111560.0,3.50118013]
[1761432020361,1e-08,111570.0,111560.0,1.48618013]
[1761432020581,1e-08,111570.0,111560.0,1.50418013]
[1761432020810,1e-08,111570.0,111560.0,3.50618013]
[1761432024860,1e-08,111570.0,111560.0,3.42058741]
[1761432025541,1e-08,111570.0,111560.0,3.08154355]
[1761432025752,1e-08,111570.0,111560.0,3.07154356]
[1761432026723,1e-08,111570.0,111560.0,3.05154356]
[1761432026945,1e-08,111570.0,111560.0,3.05354356]
[1761432027149,1e-08,111570.0,111560.0,3.06954356]
[1761432034015,1e-08,111570.0,111560.0,3.21514356]
[1761432034650,1e-08,111570.0,111560.0,2.4362807]
[1761432034857,1e-08,111570.0,111560.0,2.43269473]
[1761432035079,1e-08,111570.0,111560.0,2.77269473]
[1761432035714,1e-08,111570.0,111560.0,2.28709473]
[1761432036125,1e-08,111570.0,111560.0,2.62709473]
[1761432036567,1e-08,111570.0,111560.0,2.71491374]
[1761432036832,1e-08,111570.0,111560.0,2.71691374]
[1761432037816,1e-08,111570.0,111560.0,2.70091374]
[1761432037982,1e-08,111570.0,111560.0,2.71191374]
[1761432038382,1e-08,111570.0,111560.0,2.71391374]
[1761432039002,1e-08,111570.0,111560.0,0.71391374]
[1761432053399,1e-08,111570.0,111560.0,0.92823374]
[1761432054891,1e-08,111570.0,111560.0,1.2672776]
[1761432062297,1e-08,111570.0,111560.0,0.92823374]
[1761432063315,1e-08,111570.0,111560.0,0.71391374]
[1761432063521,1e-08,111570.0,111560.0,0.83841473]
[1761432074203,1e-08,111570.0,111560.0,0.78109473]
[1761432093884,1e-08,111570.0,111560.0,0.78468108]
[1761432122484,1e-08,111570.0,111560.0,0.79468107]
[1761432123069,1e-08,111570.0,111560.0,0.94028107]